bitfinex/quotes_BTCUSD_20250316
["timestamp","ask_amount","ask_price","bid_price","bid_amount"]
[1742098328075,0.011821,84594.0,84593.0,0.005]
[1742098328752,0.011821,84594.0,84593.0,0.002]
[1742098328968,0.011821,84594.0,84593.0,0.005]
[1742098329514,0.011821,84594.0,84593.0,0.002]
[1742098329923,0.011821,84594.0,84593.0,0.005]
[1742098330283,0.011821,84594.0,84593.0,0.003]
[1742098330488,0.03035274,84594.0,84593.0,0.003]
[1742098331725,0.03035274,84594.0,84593.0,0.13652]
[1742098332462,0.33035274,84594.0,84593.0,0.006]
[1742098333615,0.548247,84593.0,84592.0,0.0003388]
[1742098335767,0.548247,84593.0,84592.0,0.0013388]
[1742098336403,0.548247,84593.0,84592.0,0.0023388]
[1742098339588,0.5484164,84593.0,84592.0,0.0023388]
[1742098340023,0.3119904,84593.0,84592.0,0.0023388]
[1742098340526,0.33052232,84593.0,84592.0,0.0023388]
[1742098341558,0.3119904,84593.0,84592.0,0.0023388]
[1742098348875,0.33052229,84593.0,84592.0,0.0023388]
[1742098349963,0.0119904,84593.0,84592.0,0.0023388]
[1742098354300,0.03052264,84593.0,84592.0,0.0023388]
[1742098357534,0.0119904,84593.0,84592.0,0.0023388]
[1742098361135,0.03052265,84593.0,84592.0,0.0023388]
[1742098362114,0.0119904,84593.0,84592.0,0.0023388]
[1742098365159,0.03052266,84593.0,84592.0,0.0023388]
[1742098366343,0.0119904,84593.0,84592.0,0.0023388]
[1742098367037,0.0119904,84593.0,84592.0,0.0851388]
[1742098367038,0.0001694,84593.0,84592.0,0.0851388]
[1742098372326,0.0001694,84593.0,84592.0,0.0023388]
[1742098374004,0.0119904,84593.0,84592.0,0.0023388]
[1742098375159,0.03052225,84593.0,84592.0,0.0023388]
[1742098376300,0.0119904,84593.0,84592.0,0.0023388]
[1742098381100,0.3119904,84593.0,84592.0,0.0023388]
[1742098382529,0.32653125,84593.0,84592.0,0.0013388]
[1742098382981,0.32653125,84593.0,84592.0,0.0033388]
[1742098383135,0.32653125,84593.0,84592.0,0.0013388]
[1742098384167,0.34506438,84593.0,84592.0,0.0003388]
[1742098384598,0.34506438,84593.0,84592.0,0.0013388]
[1742098384976,0.34506438,84593.0,84592.0,0.0003388]
[1742098392127,0.53597294,84593.0,84592.0,0.0003388]
[1742098392698,0.42106438,84593.0,84592.0,0.0003388]
[1742098395253,0.42206438,84593.0,84592.0,0.0003388]
[1742098397743,0.01970253,84593.0,84592.0,0.0003388]
[1742098397942,0.0011694,84593.0,84592.0,0.0804388]
[1742098398393,0.0011694,84593.0,84592.0,0.2110388]
[1742098398774,0.0001694,84593.0,84592.0,0.2110388]
[1742098399078,0.0001694,84593.0,84592.0,0.2130388]
[1742098399281,0.0001694,84593.0,84592.0,0.2160388]
[1742098399632,0.0001694,84593.0,84592.0,0.2140388]
[1742098399833,0.0001694,84593.0,84592.0,0.2170388]
[1742098401260,0.0187014,84593.0,84592.0,0.2170388]
[1742098402267,0.0001694,84593.0,84592.0,0.2170388]
[1742098404636,0.0001694,84593.0,84592.0,0.2642388]
[1742098406693,0.01870141,84593.0,84592.0,0.2642388]
[1742098406898,0.01870141,84593.0,84592.0,0.27374323]
[1742098410195,0.01870141,84593.0,84592.0,0.22646323]
[1742098411095,0.0001694,84593.0,84592.0,0.22646323]
[1742098412867,0.24625292,84596.0,84592.0,0.22646323]
[1742098413249,0.248235,84597.0,84592.0,0.22646323]
[1742098413882,0.01853148,84596.0,84592.0,0.22646323]
[1742098414512,0.01853148,84596.0,84592.0,0.22346323]
[1742098414712,0.01853148,84596.0,84592.0,0.22646323]
[1742098415021,0.01853148,84596.0,84592.0,0.22346323]
[1742098415338,0.03035148,84596.0,84592.0,0.22346323]
[1742098415691,0.03035148,84596.0,84592.0,0.22546323]
[1742098416162,0.03035148,84596.0,84592.0,0.22546263]
[1742098416809,0.03035148,84596.0,84592.0,0.22246263]
[1742098416977,0.03035148,84596.0,84592.0,0.22546263]
[1742098419210,0.26677148,84596.0,84592.0,0.22546263]
[1742098419425,0.01853148,84596.0,84592.0,0.46189063]
[1742098421042,0.0001694,84596.0,84592.0,0.46189063]
[1742098424360,0.01870087,84596.0,84592.0,0.46189063]
[1742098424847,0.01870087,84596.0,84592.0,0.33137063]
[1742098424990,0.01870087,84596.0,84593.0,0.13052]
[1742098426291,0.01870087,84596.0,84593.0,0.13352]
[1742098426493,0.25512087,84596.0,84593.0,0.13352]
[1742098426775,0.25512087,84596.0,84593.0,0.13552]
[1742098427458,0.25512087,84596.0,84593.0,0.005]
[1742098427663,0.25512087,84596.0,84593.0,0.13552]
[1742098428482,0.26694087,84596.0,84593.0,0.13552]
[1742098428693,0.011821,84595.0,84593.0,0.13552]
[1742098429409,0.011821,84595.0,84593.0,0.005]
[1742098429553,0.011821,84595.0,84593.0,0.13352]
[1742098429764,0.011821,84595.0,84593.0,0.13252]
[1742098430081,0.236423,84594.0,84593.0,0.13552]
[1742098430613,0.236423,84594.0,84593.0,0.005]
[1742098430745,0.236423,84594.0,84593.0,0.13552]
[1742098431953,0.236423,84594.0,84593.0,0.13252]
[1742098432169,0.236423,84594.0,84593.0,0.13052]
[1742098432311,0.236423,84594.0,84593.0,0.13352]
[1742098432516,0.236423,84594.0,84593.0,0.006]
[1742098432724,0.248244,84594.0,84593.0,0.006]
[1742098436258,0.548244,84594.0,84593.0,0.003]
[1742098436410,0.56278485,84594.0,84593.0,0.003]
[1742098436612,0.56278485,84594.0,84593.0,0.002]
[1742098437043,0.56278485,84594.0,84593.0,0.004]
[1742098437648,0.64252184,84594.0,84593.0,0.004]
[1742098438265,0.311821,84593.0,84592.0,0.00984263]
[1742098438429,0.40206185,84593.0,84592.0,0.00984263]
[1742098438620,0.44866185,84593.0,84592.0,6.3e-07]
[1742098438822,0.50366185,84593.0,84592.0,6.3e-07]
[1742098439045,0.62323688,84593.0,84592.0,6.3e-07]
[1742098439688,0.76261004,84593.0,84592.0,6.3e-07]
[1742098439981,0.78114645,84593.0,84592.0,6.3e-07]
[1742098440391,0.73114645,84593.0,84592.0,6.3e-07]
[1742098440547,0.78114645,84593.0,84592.0,6.3e-07]
[1742098440748,0.66157142,84593.0,84592.0,6.3e-07]
[1742098440946,0.51251501,84593.0,84592.0,6.3e-07]
[1742098441161,0.64303501,84593.0,84592.0,6.3e-07]
[1742098441489,0.64503501,84593.0,84592.0,6.3e-07]
[1742098441688,0.76461004,84593.0,84592.0,6.3e-07]
[1742098442151,0.76561004,84593.0,84592.0,6.3e-07]
[1742098442354,0.64903501,84593.0,84592.0,6.3e-07]
[1742098443335,0.548273,84584.0,84583.0,9.1e-07]
[1742098443545,0.63851385,84584.0,84583.0,4.22e-05]
[1742098443748,0.68511385,84584.0,84583.0,4.22e-05]
[1742098443921,0.78513384,84584.0,84583.0,4.22e-05]
[1742098444329,0.84013384,84584.0,84583.0,4.22e-05]
[1742098445297,0.85867373,84584.0,84583.0,4.22e-05]
[1742098445653,0.86367373,84584.0,84583.0,4.22e-05]
[1742098445956,0.86867373,84584.0,84583.0,4.22e-05]
[1742098447109,0.81867373,84584.0,84583.0,4.22e-05]
[1742098447323,0.86867373,84584.0,84583.0,4.22e-05]
[1742098447784,0.86367373,84584.0,84583.0,4.22e-05]
[1742098447915,0.86867373,84584.0,84583.0,4.22e-05]
[1742098448126,0.76865374,84584.0,84583.0,4.22e-05]
[1742098448760,0.89917374,84584.0,84583.0,4.22e-05]
[1742098449125,0.548355,84556.0,84555.0,0.12552299]
[1742098449326,0.548355,84556.0,84555.0,0.12560119]
[1742098452316,0.548355,84556.0,84555.0,0.12760119]
[1742098452725,0.248355,84556.0,84555.0,0.12760119]
[1742098454281,0.26689548,84556.0,84555.0,0.12760119]
[1742098456652,0.26689548,84556.0,84555.0,0.12793999]
[1742098458864,0.26689548,84556.0,84555.0,0.002417]
[1742098459398,0.248355,84556.0,84555.0,0.002417]
[1742098460070,0.248355,84556.0,84555.0,0.000417]
[1742098460277,0.248355,84556.0,84555.0,0.001417]
[1742098460494,0.248355,84556.0,84555.0,0.002417]
[1742098462828,0.26689505,84556.0,84555.0,0.002417]
[1742098468631,0.26706455,84556.0,84555.0,0.002417]
[1742098469489,0.2485245,84556.0,84555.0,0.002417]
[1742098469624,0.2485245,84556.0,84555.0,0.001417]
[1742098470050,0.2485245,84556.0,84555.0,0.000417]
[1742098470247,0.2485245,84556.0,84555.0,0.001417]
[1742098470992,0.2485245,84556.0,84555.0,0.002417]
[1742098472781,0.26706422,84556.0,84555.0,0.002417]
[1742098473919,0.2485245,84556.0,84555.0,0.002417]
[1742098478407,0.5485245,84556.0,84555.0,0.084417]
[1742098481241,0.56706383,84556.0,84555.0,0.084417]
[1742098486438,0.5485245,84556.0,84555.0,0.084417]
[1742098489931,0.3119955,84556.0,84555.0,0.084417]
[1742098491753,0.3001695,84556.0,84555.0,0.084417]
[1742098493830,0.31870855,84556.0,84555.0,0.084417]
[1742098494188,0.33053455,84556.0,84555.0,0.084417]
[1742098495963,0.33053455,84556.0,84555.0,0.002417]
[1742098496884,0.33053455,84556.0,84555.0,0.00965016]
[1742098502045,0.31870855,84556.0,84555.0,0.08605016]
[1742098502677,0.33053455,84556.0,84555.0,0.08605016]
[1742098504149,0.31870855,84556.0,84555.0,0.08605016]
[1742098527420,0.01870855,84556.0,84555.0,0.09787616]
[1742098527620,0.01870855,84556.0,84555.0,0.14765873]
[1742098527828,0.01870855,84556.0,84555.0,0.14647616]
[1742098528441,0.01870855,84556.0,84555.0,0.13465016]
[1742098530252,0.01870855,84556.0,84555.0,0.08605016]
[1742098530483,0.01870855,84556.0,84555.0,0.00965016]
[1742098530666,0.01870855,84556.0,84555.0,0.13921016]
[1742098530804,0.25523755,84556.0,84555.0,0.14121016]
[1742098531008,0.25523755,84556.0,84555.0,0.14421016]
[1742098531865,0.01870855,84556.0,84555.0,0.14421016]
[1742098538102,0.01870855,84556.0,84555.0,0.28111875]
[1742098538300,0.0001695,84556.0,84555.0,0.27993616]
[1742098538633,0.0001695,84556.0,84555.0,0.1612522]
[1742098538844,0.0001695,84556.0,84555.0,0.29295449]
[1742098539067,0.0001695,84556.0,84555.0,0.9887722]
[1742098539465,0.0001695,84556.0,84555.0,0.9927722]
[1742098540491,0.0001695,84556.0,84555.0,0.9897722]
[1742098540902,0.0001695,84556.0,84555.0,0.9937722]
[1742098541225,0.0001695,84556.0,84555.0,0.9857722]
[1742098541358,0.0001695,84556.0,84555.0,0.9998428]
[1742098541562,0.0011695,84556.0,84555.0,1.0048428]
[1742098541755,0.0011695,84556.0,84555.0,0.9998428]
[1742098542005,0.0011695,84556.0,84555.0,1.0058428]
[1742098542206,0.0011695,84556.0,84555.0,1.12541783]
[1742098542408,5e-07,84556.0,84555.0,1.12541783]
[1742098543724,5e-07,84556.0,84555.0,1.53891783]
[1742098545080,5e-07,84556.0,84555.0,1.54391783]
[1742098546719,0.3001694,84593.0,84585.0,0.236448]
[1742098547062,0.3001694,84593.0,84586.0,0.13052]
[1742098547420,0.01853417,84592.0,84587.0,0.236442]
[1742098548073,0.01853417,84592.0,84590.0,0.236433]
[1742098548275,0.01853417,84592.0,84588.0,0.236437]
[1742098548692,0.01853417,84592.0,84589.0,0.13052]
[1742098549224,0.01853417,84592.0,84588.0,0.236437]
[1742098549547,0.01853417,84592.0,84589.0,0.13052]
[1742098549700,0.01853417,84592.0,84590.0,0.001]
[1742098549908,0.01853417,84592.0,84590.0,0.237432]
[1742098550506,0.01870357,84592.0,84590.0,0.237432]
[1742098550870,0.01870357,84592.0,84590.0,0.236432]
[1742098551236,0.0001694,84592.0,84590.0,0.236432]
[1742098551870,0.0001694,84592.0,84590.0,0.237432]
[1742098552084,0.0001694,84592.0,84590.0,0.238432]
[1742098553448,0.0001694,84592.0,84590.0,0.002]
[1742098554524,0.01870185,84592.0,84590.0,0.002]
[1742098558873,0.01870185,84592.0,84591.0,0.13048]
[1742098560256,0.01870185,84592.0,84591.0,0.13148]
[1742098560467,0.01870185,84592.0,84591.0,0.001]
[1742098560595,0.03052285,84592.0,84591.0,0.13148]
[1742098561317,0.0119904,84592.0,84591.0,0.13248]
[1742098562704,0.0001694,84592.0,84591.0,0.13248]
[1742098562907,0.02229053,84592.0,84591.0,0.13248]
[1742098563521,0.02229053,84592.0,84591.0,0.368911]
[1742098564318,0.02229053,84592.0,84591.0,0.238431]
[1742098564509,0.02229053,84592.0,84591.0,0.368911]
[1742098564729,0.02229053,84592.0,84591.0,0.13248]
[1742098565346,0.02229053,84592.0,84591.0,0.002]
[1742098565592,0.04082214,84592.0,84591.0,0.13248]
[1742098565972,0.02229053,84592.0,84591.0,0.13248]
[1742098567277,0.0001694,84592.0,84591.0,0.13248]
[1742098568404,0.0001694,84592.0,84591.0,0.002]
[1742098568605,0.0001694,84592.0,84591.0,0.13248]
[1742098569622,0.0001694,84592.0,84591.0,0.002]
[1742098569822,0.0001694,84592.0,84591.0,0.13248]
[1742098570403,0.0001694,84592.0,84591.0,0.002]
[1742098570613,0.0001694,84592.0,84591.0,0.13248]
[1742098570807,0.0001694,84592.0,84591.0,0.002]
[1742098571010,0.0001694,84592.0,84591.0,0.13248]
[1742098573295,0.01870208,84592.0,84591.0,0.13248]
[1742098574588,0.01870208,84592.0,84591.0,0.002]
[1742098574800,0.01870208,84592.0,84591.0,0.13248]
[1742098576323,0.01870208,84592.0,84591.0,0.368911]
[1742098577411,0.01870208,84592.0,84591.0,0.238431]
[1742098577729,0.01870208,84592.0,84591.0,0.368911]
[1742098578065,0.01870208,84592.0,84591.0,0.13248]
[1742098578681,0.01870208,84592.0,84591.0,0.238431]
[1742098578887,0.01870208,84592.0,84591.0,0.368911]
[1742098579549,0.01870208,84592.0,84591.0,0.238431]
[1742098579729,0.01870208,84592.0,84591.0,0.368911]
[1742098580429,0.01870208,84592.0,84591.0,0.238431]
[1742098580635,0.01870208,84592.0,84591.0,0.368911]
[1742098581350,0.0001694,84592.0,84591.0,0.368911]
[1742098582688,0.0001694,84592.0,84591.0,0.13248]
[1742098582928,0.0119904,84592.0,84591.0,0.13248]
[1742098583521,0.0119904,84592.0,84591.0,0.002]
[1742098583922,0.03419902,84592.0,84591.0,0.002]
[1742098585063,0.0119904,84592.0,84591.0,0.002]
[1742098590071,0.03052276,84592.0,84591.0,0.002]
[1742098592021,0.03052276,84592.0,84591.0,0.00919026]
[1742098594518,0.01870176,84592.0,84591.0,0.00919026]
[1742098598770,0.03052276,84592.0,84591.0,0.00919026]
[1742098603452,0.01870176,84592.0,84591.0,0.00919026]
[1742098604663,0.01870176,84592.0,84591.0,0.13967026]
[1742098605404,0.01870176,84592.0,84591.0,0.00919026]
[1742098605621,0.01870176,84592.0,84591.0,0.13967026]
[1742098607363,0.25512976,84592.0,84591.0,0.13967026]
[1742098607562,0.26695076,84592.0,84591.0,0.00919026]
[1742098607904,0.26695076,84592.0,84591.0,0.13967026]
[1742098608343,0.26695076,84592.0,84591.0,0.00919026]
[1742098608534,0.26695076,84592.0,84591.0,0.13967026]
[1742098609448,0.26695076,84592.0,84591.0,0.00919026]
[1742098612568,0.26695076,84592.0,84591.0,0.13967026]
[1742098613358,0.26695076,84592.0,84591.0,0.00919026]
[1742098613570,0.26695076,84592.0,84591.0,0.13967026]
[1742098613571,0.01870176,84592.0,84591.0,0.13967026]
[1742098618723,0.01870176,84592.0,84591.0,0.00919026]
[1742098618903,0.01870176,84592.0,84591.0,0.13967026]
[1742098619480,0.01870176,84592.0,84591.0,0.00919026]
[1742098619687,0.01870176,84592.0,84591.0,0.13967026]
[1742098620832,0.01870176,84592.0,84591.0,0.00919026]
[1742098621035,0.01870176,84592.0,84591.0,0.13967026]
[1742098623558,0.01870176,84592.0,84591.0,0.00919026]
[1742098623728,0.01870176,84592.0,84591.0,0.13967026]
[1742098624487,0.01870176,84592.0,84591.0,0.00919026]
[1742098624641,0.01870176,84592.0,84591.0,0.13967026]
[1742098626470,0.01870176,84592.0,84591.0,0.00919026]
[1742098626771,0.01870176,84592.0,84591.0,0.13967026]
[1742098627456,0.01870176,84592.0,84591.0,0.37610126]
[1742098627857,0.01870176,84592.0,84591.0,0.00919026]
[1742098628104,0.01870176,84592.0,84591.0,0.13967026]
[1742098629357,0.01870176,84592.0,84591.0,0.00919026]
[1742098629568,0.01870176,84592.0,84591.0,0.13963026]
[1742098630422,0.01870176,84592.0,84591.0,0.00919026]
[1742098630583,0.01870176,84592.0,84591.0,0.13963026]
[1742098631398,0.01870176,84592.0,84591.0,0.00919026]
[1742098631593,0.01870176,84592.0,84591.0,0.13963026]
[1742098634083,0.01870176,84592.0,84591.0,0.00919026]
[1742098634216,0.01870176,84592.0,84591.0,0.13963026]
[1742098634418,0.01870176,84592.0,84591.0,0.00919026]
[1742098634619,0.01870176,84592.0,84591.0,0.13963026]
[1742098636021,0.03052276,84592.0,84591.0,0.13963026]
[1742098636396,0.03052276,84592.0,84591.0,0.00919026]
[1742098636602,0.03052276,84592.0,84591.0,0.13963026]
[1742098638425,0.03052276,84592.0,84591.0,0.00919026]
[1742098638639,0.03052276,84592.0,84591.0,0.13963026]
[1742098640459,0.03052276,84592.0,84591.0,0.00919026]
[1742098640586,0.03052276,84592.0,84591.0,0.13963026]
[1742098640957,0.03052276,84592.0,84591.0,0.00919026]
[1742098641577,0.03052276,84592.0,84591.0,0.13963026]
[1742098642406,0.03052276,84592.0,84591.0,0.00919026]
[1742098642607,0.03052276,84592.0,84591.0,0.13963026]
[1742098643539,0.03052276,84592.0,84591.0,0.00919026]
[1742098643741,0.03052276,84592.0,84591.0,0.13963026]
[1742098644421,0.03052276,84592.0,84591.0,0.00919026]
[1742098644822,0.03052276,84592.0,84591.0,0.13963026]
[1742098645423,0.03052276,84592.0,84591.0,0.00919026]
[1742098645624,0.03052276,84592.0,84591.0,0.13963026]
[1742098646419,0.03052276,84592.0,84591.0,0.00919026]
[1742098646768,0.03052276,84592.0,84591.0,0.13963026]
[1742098647265,0.03052276,84592.0,84591.0,0.00919026]
[1742098647689,0.03052276,84592.0,84591.0,0.13963026]
[1742098648065,0.03052276,84592.0,84591.0,0.00919026]
[1742098656779,0.03052276,84592.0,84591.0,0.13963026]
[1742098657138,0.03052276,84592.0,84591.0,0.00919026]
[1742098657561,0.03052276,84592.0,84591.0,0.13963026]
[1742098657759,0.03052276,84592.0,84591.0,0.00919026]
[1742098657955,0.03052276,84592.0,84591.0,0.13963026]
[1742098658413,0.03052276,84592.0,84591.0,0.00919026]
[1742098658724,0.03052276,84592.0,84591.0,0.13963026]
[1742098659421,0.03052276,84592.0,84591.0,0.00919026]
[1742098659570,0.03052276,84592.0,84591.0,0.13963026]
[1742098673473,0.01870176,84592.0,84591.0,0.37606126]
[1742098673721,0.01870176,84592.0,84591.0,0.45506126]
[1742098673934,0.0001694,84592.0,84591.0,0.46688226]
[1742098675172,0.0001694,84592.0,84591.0,0.46588226]
[1742098675838,0.0001694,84592.0,84591.0,0.46488226]
[1742098676260,0.0001694,84592.0,84591.0,0.46788226]
[1742098676459,0.0001694,84592.0,84591.0,0.47088226]
[1742098677142,0.0001694,84592.0,84591.0,0.46788226]
[1742098677300,0.01870087,84592.0,84591.0,0.46788226]
[1742098677480,0.01870087,84592.0,84591.0,0.47388226]
[1742098677884,0.01870087,84592.0,84591.0,0.47088226]
[1742098678336,0.0001694,84592.0,84591.0,0.47688226]
[1742098682406,0.0001694,84592.0,84591.0,0.48387332]
[1742098683037,0.01870115,84592.0,84591.0,0.48387332]
[1742098684266,0.0001694,84592.0,84591.0,0.53347332]
[1742098684447,0.0001694,84592.0,84591.0,0.65304835]
[1742098685087,0.0001694,84592.0,84591.0,0.64704835]
[1742098685496,0.0001694,84592.0,84591.0,1.35304835]
[1742098686140,0.0001694,84592.0,84591.0,1.34704835]
[1742098686732,0.0001694,84592.0,84591.0,1.34104835]
[1742098686948,0.0001694,84592.0,84591.0,1.34704835]
[1742098687095,0.0001694,84592.0,84591.0,1.35304835]
[1742098688661,3.86e-06,84593.0,84592.0,0.089521]
[1742098688898,3.86e-06,84593.0,84592.0,0.7907028]
[1742098689052,3.86e-06,84593.0,84592.0,0.789521]
[1742098689954,3.86e-06,84593.0,84592.0,0.795521]
[1742098690155,3.86e-06,84593.0,84592.0,0.801521]
[1742098690353,3.86e-06,84593.0,84592.0,0.101521]
[1742098690700,3.86e-06,84593.0,84592.0,0.1027028]
[1742098692947,3.86e-06,84593.0,84592.0,0.101521]
[1742098693364,3.86e-06,84593.0,84592.0,0.84358198]
[1742098693563,3.86e-06,84593.0,84592.0,0.8424]
[1742098693779,3.86e-06,84593.0,84592.0,0.8364]
[1742098693991,3.86e-06,84593.0,84592.0,0.942428]
[1742098694195,3.86e-06,84593.0,84592.0,1.077828]
[1742098694642,3.86e-06,84593.0,84592.0,1.066828]
[1742098694819,3.86e-06,84593.0,84592.0,1.072828]
[1742098695008,3.86e-06,84593.0,84592.0,0.389649]
[1742098695580,3.86e-06,84593.0,84592.0,0.383649]
[1742098695957,3.86e-06,84593.0,84592.0,0.389649]
[1742098697091,3.86e-06,84593.0,84592.0,0.377828]
[1742098699843,0.01853421,84593.0,84592.0,0.377828]
[1742098700639,0.01853421,84593.0,84592.0,0.1414]
[1742098700846,0.01182486,84593.0,84592.0,0.1414]
[1742098701063,0.02350658,84593.0,84592.0,0.1414]
[1742098701672,3.86e-06,84593.0,84592.0,0.1414]
[1742098702201,3.86e-06,84593.0,84592.0,0.1354]
[1742098702320,3.86e-06,84593.0,84592.0,0.1394]
[1742098702930,3.86e-06,84593.0,84592.0,0.1344]
[1742098703356,3.86e-06,84593.0,84592.0,0.1384]
[1742098703588,3.86e-06,84593.0,84592.0,0.13844]
[1742098705228,0.01853466,84593.0,84592.0,0.13844]
[1742098705656,0.01853466,84593.0,84592.0,0.008]
[1742098705858,0.01853466,84593.0,84592.0,0.13844]
[1742098706593,0.01853466,84593.0,84592.0,0.008]
[1742098706779,0.01853466,84593.0,84592.0,0.13844]
[1742098707280,3.86e-06,84593.0,84592.0,0.13844]
[1742098707574,3.86e-06,84593.0,84592.0,0.008]
[1742098707756,3.86e-06,84593.0,84592.0,0.13844]
[1742098708474,3.86e-06,84593.0,84592.0,0.008]
[1742098708728,3.86e-06,84593.0,84592.0,0.13844]
[1742098710483,0.01853436,84593.0,84592.0,0.13844]
[1742098710693,0.01853436,84593.0,84592.0,0.150261]
[1742098711068,0.01853436,84593.0,84592.0,0.1505998]
[1742098711254,0.01853436,84593.0,84592.0,0.22688184]
[1742098711653,0.01853436,84593.0,84592.0,0.2256998]
[1742098712195,0.01853436,84593.0,84592.0,0.2216998]
[1742098712569,0.01853436,84593.0,84592.0,0.2176998]
[1742098713970,0.01853436,84593.0,84592.0,0.2226998]
[1742098714171,0.01853436,84593.0,84592.0,0.2286998]
[1742098714373,0.01853436,84593.0,84592.0,0.2236998]
[1742098714753,0.01853436,84593.0,84592.0,0.2296998]
[1742098715654,0.01853436,84593.0,84592.0,0.0992598]
[1742098715857,0.01853436,84593.0,84592.0,0.2296998]
[1742098716521,0.01853436,84593.0,84592.0,0.23088176]
[1742098717111,0.01853436,84593.0,84592.0,0.2296998]
[1742098717494,0.01853436,84593.0,84592.0,0.23088175]
[1742098718367,3.86e-06,84593.0,84592.0,0.23088175]
[1742098719335,3.86e-06,84593.0,84592.0,0.27948175]
[1742098719535,3.86e-06,84593.0,84592.0,0.2782998]
[1742098720544,3.86e-06,84593.0,84592.0,0.9782998]
[1742098721108,3.86e-06,84593.0,84592.0,0.9662998]
[1742098721375,3.86e-06,84593.0,84592.0,0.9722998]
[1742098721582,3.86e-06,84593.0,84592.0,0.9782998]
[1742098722414,3.86e-06,84593.0,84592.0,0.8427788]
[1742098723045,3.86e-06,84593.0,84592.0,0.1545998]
[1742098723248,3.86e-06,84593.0,84592.0,0.1557818]
[1742098723726,3.86e-06,84593.0,84592.0,0.1497818]
[1742098724287,3.86e-06,84593.0,84592.0,0.1487818]
[1742098724484,3.86e-06,84593.0,84592.0,0.1537818]
[1742098727071,0.01853362,84593.0,84592.0,0.1537818]
[1742098729234,0.01853362,84593.0,84592.0,0.1419608]
[1742098729610,3.86e-06,84593.0,84592.0,0.1419608]
[1742098729989,3.86e-06,84593.0,84592.0,0.1537818]
[1742098734521,3.86e-06,84593.0,84592.0,0.0233418]
[1742098734713,3.86e-06,84593.0,84592.0,0.1537818]
[1742098735610,3.86e-06,84593.0,84592.0,0.0233418]
[1742098735764,3.86e-06,84593.0,84592.0,0.1537818]
[1742098736692,0.01853389,84593.0,84592.0,0.1537818]
[1742098737092,0.01733389,84593.0,84592.0,0.1537818]
[1742098737840,0.0001694,84596.0,84595.0,0.23642]
[1742098738698,0.0001694,84596.0,84595.0,0.36686]
[1742098739076,0.0001694,84596.0,84595.0,0.37086]
[1742098740303,0.0001694,84596.0,84595.0,0.37586]
[1742098740707,0.0001694,84596.0,84595.0,0.009]
[1742098740708,0.0119894,84596.0,84595.0,0.009]
[1742098740919,0.0119894,84596.0,84595.0,0.1394]
[1742098741916,0.0001694,84596.0,84595.0,0.009]
[1742098742120,0.01869991,84596.0,84595.0,0.1394]
[1742098742917,0.01869991,84596.0,84595.0,0.37582]
[1742098744532,0.01869991,84596.0,84595.0,0.37586]
[1742098745703,0.01869991,84596.0,84595.0,0.009]
[1742098745987,0.01869991,84596.0,84595.0,0.13944]
[1742098747492,0.01869991,84596.0,84595.0,0.009]
[1742098747661,0.01869991,84596.0,84595.0,0.13944]
[1742098748501,0.01869991,84596.0,84595.0,0.009]
[1742098748708,0.01869991,84596.0,84595.0,0.13944]
[1742098749538,0.01869991,84596.0,84595.0,0.009]
[1742098749725,0.01869991,84596.0,84595.0,0.13944]
[1742098751138,0.03051991,84596.0,84595.0,0.13944]
[1742098751851,0.03051991,84596.0,84595.0,0.009]
[1742098752058,0.03051991,84596.0,84595.0,0.13944]
[1742098752282,0.03051991,84596.0,84595.0,0.13444]
[1742098752509,0.248241,84595.0,84593.0,0.0003388]
[1742098752731,0.248241,84595.0,84594.0,0.13044]
[1742098753984,0.248241,84595.0,84594.0,0.13344]
[1742098754574,0.248241,84595.0,84594.0,0.13644]
[1742098754761,0.248241,84595.0,84594.0,0.006]
[1742098755043,0.248241,84595.0,84594.0,0.13644]
[1742098755386,0.248241,84595.0,84594.0,0.006]
[1742098755596,0.260045,84595.0,84594.0,0.13644]
[1742098756093,0.03051991,84596.0,84594.0,0.13644]
[1742098756620,0.03051991,84596.0,84595.0,0.13044]
[1742098758075,0.01869991,84596.0,84595.0,0.13044]
[1742098758461,0.03051991,84596.0,84595.0,0.13044]
[1742098758863,0.03051991,84596.0,84595.0,0.13344]
[1742098759515,0.03051991,84596.0,84595.0,0.003]
[1742098759713,0.03051991,84596.0,84595.0,0.13644]
[1742098762540,0.03051991,84596.0,84595.0,0.006]
[1742098762779,0.03051991,84596.0,84595.0,0.13644]
[1742098765527,0.03051991,84596.0,84595.0,0.006]
[1742098765750,0.03051991,84596.0,84595.0,0.13644]
[1742098766430,0.03051991,84596.0,84595.0,0.006]
[1742098766758,0.03051991,84596.0,84595.0,0.13644]
[1742098767485,0.01869991,84596.0,84595.0,0.13644]
[1742098768481,0.01869991,84596.0,84595.0,0.006]
[1742098768687,0.01869991,84596.0,84595.0,0.13644]
[1742098769512,0.03051991,84596.0,84595.0,0.13644]
[1742098771445,0.03051991,84596.0,84595.0,0.006]
[1742098771854,0.03051991,84596.0,84595.0,0.13644]
[1742098772362,0.03051991,84596.0,84595.0,0.14294978]
[1742098772566,0.03051991,84596.0,84595.0,0.01250978]
[1742098772841,0.03051991,84596.0,84595.0,0.14294978]
[1742098773547,0.03051991,84596.0,84595.0,0.01250978]
[1742098773849,0.03051991,84596.0,84595.0,0.14294978]
[1742098774410,0.03051991,84596.0,84595.0,0.01250978]
[1742098774715,0.03051991,84596.0,84595.0,0.14294978]
[1742098778436,0.03051991,84596.0,84595.0,0.01250978]
[1742098778654,0.03051991,84596.0,84595.0,0.14294978]
[1742098779513,0.03051991,84596.0,84595.0,0.14290978]
[1742098780501,0.03051991,84596.0,84595.0,0.14294978]
[1742098781613,0.03051991,84596.0,84595.0,0.01250978]
[1742098781788,0.03051991,84596.0,84595.0,0.14290978]
[1742098782333,0.03051991,84596.0,84595.0,0.01250978]
[1742098782743,0.03051991,84596.0,84595.0,0.14290978]
[1742098783090,0.03051991,84596.0,84595.0,0.01250978]
[1742098783326,0.03051991,84596.0,84595.0,0.14294978]
[1742098783478,0.03051991,84596.0,84595.0,0.01250978]
[1742098783827,0.03051991,84596.0,84595.0,0.14294978]
[1742098784522,0.03051991,84596.0,84595.0,0.01250978]
[1742098785143,0.03051991,84596.0,84595.0,0.14294978]
[1742098785322,0.03051991,84596.0,84595.0,0.01250978]
[1742098785780,0.03051991,84596.0,84595.0,0.14294978]
[1742098786859,0.33051991,84596.0,84595.0,0.14290978]
[1742098787453,0.33051991,84596.0,84595.0,0.01250978]
[1742098787657,0.33051991,84596.0,84595.0,0.14290978]
[1742098788553,0.33051991,84596.0,84595.0,0.01250978]
[1742098788756,0.33051991,84596.0,84595.0,0.14290978]
[1742098789349,0.33051991,84596.0,84595.0,0.01250978]
[1742098789546,0.3891894,84596.0,84595.0,0.01250978]
[1742098789750,0.54194415,84596.0,84595.0,0.01250978]
[1742098789984,0.44883025,84596.0,84595.0,0.01250978]
[1742098790656,0.44883025,84596.0,84595.0,0.00950978]